[Event "Titled Tuesday Blitz June 13 Early 2023"]
[White "UNSTOPPABLE_LEGEND"]
[Black "Lakshmi C"]
[BlackFideId "25035347"]
[WhiteElo "2458"]
[BlackElo "1942"]
[Result "1-0"]
[Round "2"]
[TimeControl "180+2"]
[Date "2023.06.13"]
[WhiteClock "0:01:34"]
[BlackClock "0:00:05"]
[Board "224"]

1. e4 {[%clk 0:03:00]}  c5 {[%clk 0:02:50]} 2. Nf3 {[%clk 0:03:00]}  Nc6 {[%clk 0:02:41]} 3. Bb5 {[%clk 0:02:59]}  g6 {[%clk 0:02:38]} 4. Bxc6 {[%clk 0:02:58]}  dxc6 {[%clk 0:02:38]} 5. O-O {[%clk 0:02:57]}  Bg7 {[%clk 0:02:38]} 6. d3 {[%clk 0:02:57]}  e5 {[%clk 0:02:38]} 7. h3 {[%clk 0:02:57]}  Nf6 {[%clk 0:02:23]} 8. Be3 {[%clk 0:02:56]}  Nd7 {[%clk 0:02:22]} 9. Nbd2 {[%clk 0:02:54]}  O-O {[%clk 0:02:19]} 10. Nc4 {[%clk 0:02:50]}  Qe7 {[%clk 0:02:19]} 11. a3 {[%clk 0:02:49]}  f5 {[%clk 0:02:12]} 12. Rb1 {[%clk 0:02:43]}  f4 {[%clk 0:02:08]} 13. Bd2 {[%clk 0:02:40]}  b6 {[%clk 0:02:05]} 14. b4 {[%clk 0:02:39]}  cxb4 {[%clk 0:02:05]} 15. axb4 {[%clk 0:02:40]}  Ba6 {[%clk 0:02:01]} 16. Bc3 {[%clk 0:02:37]}  Rad8 {[%clk 0:01:58]} 17. Ra1 {[%clk 0:02:35]}  Bxc4 {[%clk 0:00:21]} 18. dxc4 {[%clk 0:02:36]}  Nf6 {[%clk 0:00:13]} 19. Qe2 {[%clk 0:02:36]}  Ne8 {[%clk 0:00:12]} 20. Ra6 {[%clk 0:02:32]}  h5 {[%clk 0:00:10]} 21. Rfa1 {[%clk 0:02:32]}  Rd7 {[%clk 0:00:10]} 22. c5 {[%clk 0:01:52]}  b5 {[%clk 0:00:08]} 23. Rxc6 {[%clk 0:01:53]}  g5 {[%clk 0:00:07]} 24. Rg6 {[%clk 0:01:49]}  Kh7 {[%clk 0:00:06]} 25. Rxg5 {[%clk 0:01:46]}  Bf6 {[%clk 0:00:05]} 26. Rxh5+ {[%clk 0:01:34]}  Kg6 {[%clk 0:00:05]} 1-0


[Site "https://www.chess.com"]

[Event "Titled Tuesday Blitz June 13 Early 2023"]
[White "Philippe, Guillaume"]
[Black "Dudzinski, Pawel"]
[WhiteFideId "36048763"]
[BlackFideId "1117890"]
[WhiteElo "2387"]
[BlackElo "2099"]
[Result "0-1"]
[Round "2"]
[TimeControl "180+2"]
[Date "2023.06.13"]
[WhiteClock "0:00:10"]
[BlackClock "0:00:25"]
[Board "225"]

1. e4 {[%clk 0:03:00]}  c5 {[%clk 0:02:59]} 2. Nf3 {[%clk 0:02:56]}  d6 {[%clk 0:02:53]} 3. d4 {[%clk 0:02:56]}  cxd4 {[%clk 0:02:50]} 4. Nxd4 {[%clk 0:02:57]}  Nc6 {[%clk 0:02:49]} 5. Nc3 {[%clk 0:02:56]}  Nf6 {[%clk 0:02:47]} 6. Bg5 {[%clk 0:02:55]}  a6 {[%clk 0:02:41]} 7. Qd2 {[%clk 0:02:54]}  Nxd4 {[%clk 0:02:40]} 8. Qxd4 {[%clk 0:02:54]}  b5 {[%clk 0:02:40]} 9. O-O-O {[%clk 0:02:43]}  Qa5 {[%clk 0:02:38]} 10. e5 {[%clk 0:02:06]}  dxe5 {[%clk 0:02:34]} 11. Qxe5 {[%clk 0:02:05]}  Bd7 {[%clk 0:02:33]} 12. Nd5 {[%clk 0:01:20]}  Nxd5 {[%clk 0:02:25]} 13. Qxd5 {[%clk 0:01:19]}  Rd8 {[%clk 0:02:25]} 14. Bc4 {[%clk 0:01:04]}  e6 {[%clk 0:02:21]} 15. Bxd8 {[%clk 0:01:04]}  exd5 {[%clk 0:02:14]} 16. Bxa5 {[%clk 0:01:04]}  dxc4 {[%clk 0:02:15]} 17. Rhe1+ {[%clk 0:00:57]}  Be7 {[%clk 0:02:15]} 18. Bb4 {[%clk 0:00:57]}  Be6 {[%clk 0:02:15]} 19. Bxe7 {[%clk 0:00:48]}  Kxe7 {[%clk 0:02:16]} 20. f4 {[%clk 0:00:47]}  g6 {[%clk 0:02:12]} 21. g4 {[%clk 0:00:46]}  Kf6 {[%clk 0:02:12]} 22. h3 {[%clk 0:00:45]}  h5 {[%clk 0:02:11]} 23. Rd6 {[%clk 0:00:41]}  hxg4 {[%clk 0:02:11]} 24. hxg4 {[%clk 0:00:41]}  Rh4 {[%clk 0:02:07]} 25. Rg1 {[%clk 0:00:22]}  Ke7 {[%clk 0:01:58]} 26. Rxa6 {[%clk 0:00:22]}  Bxg4 {[%clk 0:01:58]} 27. Rb6 {[%clk 0:00:21]}  Bd7 {[%clk 0:01:58]} 28. Rf1 {[%clk 0:00:21]}  Kd8 {[%clk 0:01:51]} 29. Rb7 {[%clk 0:00:21]}  Kc8 {[%clk 0:01:48]} 30. Ra7 {[%clk 0:00:21]}  Rh2 {[%clk 0:01:46]} 31. Rd1 {[%clk 0:00:16]}  Bg4 {[%clk 0:01:46]} 32. Re1 {[%clk 0:00:16]}  Be6 {[%clk 0:01:42]} 33. b3 {[%clk 0:00:12]}  c3 {[%clk 0:01:41]} 34. a4 {[%clk 0:00:11]}  Kb8 {[%clk 0:01:34]} 35. Ra5 {[%clk 0:00:09]}  bxa4 {[%clk 0:01:30]} 36. Rxa4 {[%clk 0:00:10]}  Bf5 {[%clk 0:01:30]} 37. Rb4+ {[%clk 0:00:08]}  Ka7 {[%clk 0:01:27]} 38. Re5 {[%clk 0:00:05]}  Rxc2+ {[%clk 0:01:26]} 39. Kd1 {[%clk 0:00:05]}  Rd2+ {[%clk 0:01:25]} 40. Ke1 {[%clk 0:00:06]}  Rd6 {[%clk 0:01:25]} 41. Ra5+ {[%clk 0:00:05]}  Ra6 {[%clk 0:01:26]} 42. Rxa6+ {[%clk 0:00:02]}  Kxa6 {[%clk 0:01:27]} 43. Kd1 {[%clk 0:00:03]}  Ka5 {[%clk 0:01:23]} 44. Rb8 {[%clk 0:00:03]}  Be4 {[%clk 0:01:17]} 45. Kc1 {[%clk 0:00:03]}  Bf5 {[%clk 0:01:15]} 46. Rf8 {[%clk 0:00:04]}  Kb4 {[%clk 0:01:14]} 47. Rb8+ {[%clk 0:00:03]}  Ka3 {[%clk 0:01:14]} 48. Rb7 {[%clk 0:00:03]}  Be6 {[%clk 0:01:14]} 49. Kc2 {[%clk 0:00:02]}  Bd5 {[%clk 0:01:00]} 50. Rb8 {[%clk 0:00:02]}  g5 {[%clk 0:00:56]} 51. Kxc3 {[%clk 0:00:03]}  gxf4 {[%clk 0:00:55]} 52. Rd8 {[%clk 0:00:03]}  Bc6 {[%clk 0:00:53]} 53. Rd6 {[%clk 0:00:03]}  Bb5 {[%clk 0:00:52]} 54. Rb6 {[%clk 0:00:02]}  Be2 {[%clk 0:00:51]} 55. Rb8 {[%clk 0:00:01]}  Ka2 {[%clk 0:00:51]} 56. Ra8+ {[%clk 0:00:02]}  Kb1 {[%clk 0:00:51]} 57. Re8 {[%clk 0:00:03]}  f3 {[%clk 0:00:50]} 58. b4 {[%clk 0:00:02]}  f2 {[%clk 0:00:49]} 59. Rxe2 {[%clk 0:00:02]}  f1=Q {[%clk 0:00:50]} 60. Rb2+ {[%clk 0:00:03]}  Ka1 {[%clk 0:00:50]} 61. Rc2 {[%clk 0:00:03]}  Qb5 {[%clk 0:00:49]} 62. Kb3 {[%clk 0:00:03]}  Qd5+ {[%clk 0:00:47]} 63. Rc4 {[%clk 0:00:03]}  Kb1 {[%clk 0:00:44]} 64. Kc3 {[%clk 0:00:04]}  f5 {[%clk 0:00:41]} 65. Rc5 {[%clk 0:00:03]}  Qe4 {[%clk 0:00:37]} 66. b5 {[%clk 0:00:03]}  f4 {[%clk 0:00:35]} 67. b6 {[%clk 0:00:03]}  Qe3+ {[%clk 0:00:31]} 68. Kc4 {[%clk 0:00:03]}  Qe6+ {[%clk 0:00:22]} 69. Kb5 {[%clk 0:00:03]}  Qd7+ {[%clk 0:00:22]} 70. Ka6 {[%clk 0:00:04]}  Qa4+ {[%clk 0:00:22]} 71. Kb7 {[%clk 0:00:04]}  f3 {[%clk 0:00:22]} 72. Kc7 {[%clk 0:00:04]}  Qf4+ {[%clk 0:00:20]} 73. Kc8 {[%clk 0:00:03]}  Qf8+ {[%clk 0:00:18]} 74. Kc7 {[%clk 0:00:03]}  Qxc5+ {[%clk 0:00:19]} 75. Kb7 {[%clk 0:00:03]}  Qxb6+ {[%clk 0:00:20]} 76. Kxb6 {[%clk 0:00:03]}  f2 {[%clk 0:00:21]} 77. Kb7 {[%clk 0:00:04]}  f1=Q {[%clk 0:00:22]} 78. Ka8 {[%clk 0:00:05]}  Qf7 {[%clk 0:00:22]} 79. Kb8 {[%clk 0:00:06]}  Kc2 {[%clk 0:00:22]} 80. Ka8 {[%clk 0:00:07]}  Kc3 {[%clk 0:00:23]} 81. Kb8 {[%clk 0:00:07]}  Kc4 {[%clk 0:00:24]} 82. Ka8 {[%clk 0:00:08]}  Kc5 {[%clk 0:00:25]} 83. Kb8 {[%clk 0:00:09]}  Kc6 {[%clk 0:00:26]} 84. Ka8 {[%clk 0:00:10]}  Qb7# {[%clk 0:00:25]} 0-1


[Site "https://www.chess.com"]

[Event "Titled Tuesday Blitz June 13 Early 2023"]
[White "Maluco_do_Natal_00"]
[Black "Lima, Kleyton Alcantara"]
[BlackFideId "22718397"]
[WhiteElo "2081"]
[BlackElo "2009"]
[Result "0-1"]
[Round "2"]
[TimeControl "180+2"]
[Date "2023.06.13"]
[WhiteClock "0:00:00"]
[BlackClock "0:01:14"]
[Board "227"]

1. e4 {[%clk 0:03:00]}  c5 {[%clk 0:02:59]} 2. Nf3 {[%clk 0:02:59]}  d6 {[%clk 0:02:59]} 3. d4 {[%clk 0:02:59]}  cxd4 {[%clk 0:03:00]} 4. Nxd4 {[%clk 0:02:59]}  Nf6 {[%clk 0:03:01]} 5. Nc3 {[%clk 0:02:59]}  a6 {[%clk 0:03:01]} 6. Be3 {[%clk 0:02:59]}  e5 {[%clk 0:03:02]} 7. Nb3 {[%clk 0:02:52]}  Be6 {[%clk 0:03:00]} 8. Qd2 {[%clk 0:02:47]}  Nbd7 {[%clk 0:02:58]} 9. f3 {[%clk 0:02:38]}  h5 {[%clk 0:02:58]} 10. O-O-O {[%clk 0:02:33]}  Be7 {[%clk 0:02:55]} 11. Kb1 {[%clk 0:02:31]}  Rc8 {[%clk 0:02:52]} 12. h3 {[%clk 0:02:19]}  b5 {[%clk 0:02:44]} 13. a3 {[%clk 0:02:17]}  Nb6 {[%clk 0:02:43]} 14. Na5 {[%clk 0:02:16]}  Qc7 {[%clk 0:02:34]} 15. Be2 {[%clk 0:02:03]}  h4 {[%clk 0:02:31]} 16. f4 {[%clk 0:01:51]}  Nc4 {[%clk 0:02:23]} 17. Nxc4 {[%clk 0:01:49]}  Bxc4 {[%clk 0:02:23]} 18. Rhf1 {[%clk 0:01:33]}  Qb7 {[%clk 0:02:01]} 19. Bd3 {[%clk 0:01:11]}  a5 {[%clk 0:01:56]} 20. fxe5 {[%clk 0:01:06]}  dxe5 {[%clk 0:01:55]} 21. Bxc4 {[%clk 0:01:05]}  Rxc4 {[%clk 0:01:52]} 22. Nd5 {[%clk 0:00:59]}  Nxe4 {[%clk 0:01:44]} 23. Qxa5 {[%clk 0:00:51]}  O-O {[%clk 0:01:38]} 24. Nxe7+ {[%clk 0:00:26]}  Qxe7 {[%clk 0:01:38]} 25. Qxb5 {[%clk 0:00:20]}  Rc7 {[%clk 0:01:34]} 26. Rfe1 {[%clk 0:00:16]}  Nc3+ {[%clk 0:01:34]} 27. bxc3 {[%clk 0:00:14]}  Rb7 {[%clk 0:01:35]} 28. Bb6 {[%clk 0:00:15]}  Rfb8 {[%clk 0:01:30]} 29. Qxe5 {[%clk 0:00:13]}  Rxb6+ {[%clk 0:01:30]} 30. Kc1 {[%clk 0:00:13]}  Qxa3+ {[%clk 0:01:30]} 31. Kd2 {[%clk 0:00:13]}  Rd8+ {[%clk 0:01:30]} 32. Ke2 {[%clk 0:00:11]}  Rxd1 {[%clk 0:01:26]} 33. Kxd1 {[%clk 0:00:11]}  Rd6+ {[%clk 0:01:19]} 34. Qxd6 {[%clk 0:00:08]}  Qxd6+ {[%clk 0:01:18]} 35. Kc1 {[%clk 0:00:06]}  Qf4+ {[%clk 0:01:15]} 36. Kb2 {[%clk 0:00:05]}  Qf2 {[%clk 0:01:15]} 37. Re8+ {[%clk 0:00:04]}  Kh7 {[%clk 0:01:15]} 38. Rc8 {[%clk 0:00:03]}  Qxg2 {[%clk 0:01:15]} 39. c4 {[%clk 0:00:00]}  Qb7+ {[%clk 0:01:14]} 0-1


[Site "https://www.chess.com"]

[Event "Titled Tuesday Blitz June 13 Early 2023"]
[White "Graham, Nathaniel"]
[Black "The_Sherman_Variation"]
[WhiteFideId "2007983"]
[WhiteElo "2068"]
[BlackElo "2450"]
[Result "1/2-1/2"]
[Round "2"]
[TimeControl "180+2"]
[Date "2023.06.13"]
[WhiteClock "0:00:15"]
[BlackClock "0:00:28"]
[Board "229"]

1. e4 {[%clk 0:03:00]}  b6 {[%clk 0:02:50]} 2. d4 {[%clk 0:03:00]}  Bb7 {[%clk 0:02:50]} 3. Bd3 {[%clk 0:03:00]}  g6 {[%clk 0:02:50]} 4. Nf3 {[%clk 0:03:00]}  Bg7 {[%clk 0:02:50]} 5. O-O {[%clk 0:02:59]}  d6 {[%clk 0:02:50]} 6. c4 {[%clk 0:02:58]}  Nd7 {[%clk 0:02:50]} 7. Nc3 {[%clk 0:02:59]}  e5 {[%clk 0:02:50]} 8. d5 {[%clk 0:02:58]}  Ne7 {[%clk 0:02:49]} 9. Be3 {[%clk 0:02:52]}  O-O {[%clk 0:02:48]} 10. b4 {[%clk 0:02:47]}  f5 {[%clk 0:02:48]} 11. Ng5 {[%clk 0:02:44]}  f4 {[%clk 0:02:37]} 12. Bd2 {[%clk 0:02:43]}  Rf6 {[%clk 0:02:34]} 13. Ne6 {[%clk 0:02:34]}  Rxe6 {[%clk 0:02:34]} 14. dxe6 {[%clk 0:02:34]}  Nf8 {[%clk 0:02:35]} 15. c5 {[%clk 0:02:20]}  Kh8 {[%clk 0:02:29]} 16. Bc4 {[%clk 0:02:14]}  dxc5 {[%clk 0:02:17]} 17. bxc5 {[%clk 0:02:13]}  Qd4 {[%clk 0:02:17]} 18. Bb3 {[%clk 0:01:45]}  Qxc5 {[%clk 0:02:13]} 19. Nd5 {[%clk 0:01:29]}  Nxd5 {[%clk 0:02:03]} 20. exd5 {[%clk 0:01:29]}  Bxd5 {[%clk 0:02:01]} 21. Rc1 {[%clk 0:01:27]}  Bxb3 {[%clk 0:01:40]} 22. Qxb3 {[%clk 0:01:17]}  Qe7 {[%clk 0:01:35]} 23. Rc6 {[%clk 0:01:13]}  a5 {[%clk 0:01:15]} 24. Rfc1 {[%clk 0:01:10]}  Rd8 {[%clk 0:01:11]} 25. Be1 {[%clk 0:00:46]}  Rd6 {[%clk 0:01:10]} 26. Rxc7 {[%clk 0:00:21]}  Qxe6 {[%clk 0:01:10]} 27. Qxe6 {[%clk 0:00:19]}  Nxe6 {[%clk 0:01:07]} 28. Rc8+ {[%clk 0:00:18]}  Bf8 {[%clk 0:01:06]} 29. Kf1 {[%clk 0:00:12]}  Kg7 {[%clk 0:01:04]} 30. R1c6 {[%clk 0:00:10]}  Nd4 {[%clk 0:00:51]} 31. Rxd6 {[%clk 0:00:09]}  Bxd6 {[%clk 0:00:52]} 32. Rd8 {[%clk 0:00:08]}  Bc5 {[%clk 0:00:51]} 33. Rd7+ {[%clk 0:00:08]}  Kg8 {[%clk 0:00:48]} 34. Rd5 {[%clk 0:00:09]}  e4 {[%clk 0:00:39]} 35. Bc3 {[%clk 0:00:08]}  Nb5 {[%clk 0:00:20]} 36. Bb2 {[%clk 0:00:07]}  Kf7 {[%clk 0:00:20]} 37. Re5 {[%clk 0:00:07]}  e3 {[%clk 0:00:20]} 38. fxe3 {[%clk 0:00:07]}  Bxe3 {[%clk 0:00:21]} 39. a4 {[%clk 0:00:07]}  Nd6 {[%clk 0:00:20]} 40. Rd5 {[%clk 0:00:06]}  Nc4 {[%clk 0:00:20]} 41. Bc3 {[%clk 0:00:06]}  Ke6 {[%clk 0:00:20]} 42. Rb5 {[%clk 0:00:06]}  Na3 {[%clk 0:00:20]} 43. Rb3 {[%clk 0:00:05]}  Nc2 {[%clk 0:00:20]} 44. Ke2 {[%clk 0:00:04]}  Kd5 {[%clk 0:00:20]} 45. Kd3 {[%clk 0:00:04]}  Nb4+ {[%clk 0:00:19]} 46. Bxb4 {[%clk 0:00:04]}  axb4 {[%clk 0:00:20]} 47. Rxb4 {[%clk 0:00:04]}  Kc5 {[%clk 0:00:20]} 48. Rb5+ {[%clk 0:00:05]}  Kc6 {[%clk 0:00:20]} 49. g3 {[%clk 0:00:04]}  Bc1 {[%clk 0:00:19]} 50. gxf4 {[%clk 0:00:05]}  Bxf4 {[%clk 0:00:20]} 51. h3 {[%clk 0:00:05]}  g5 {[%clk 0:00:20]} 52. Ke4 {[%clk 0:00:05]}  h5 {[%clk 0:00:20]} 53. Kf5 {[%clk 0:00:06]}  h4 {[%clk 0:00:21]} 54. Kg4 {[%clk 0:00:06]}  Be3 {[%clk 0:00:21]} 55. Rxg5 {[%clk 0:00:05]}  Bxg5 {[%clk 0:00:22]} 56. Kxg5 {[%clk 0:00:06]}  Kc5 {[%clk 0:00:22]} 57. Kxh4 {[%clk 0:00:07]}  Kb4 {[%clk 0:00:23]} 58. Kg5 {[%clk 0:00:08]}  Kxa4 {[%clk 0:00:24]} 59. h4 {[%clk 0:00:09]}  b5 {[%clk 0:00:24]} 60. h5 {[%clk 0:00:10]}  b4 {[%clk 0:00:25]} 61. h6 {[%clk 0:00:11]}  b3 {[%clk 0:00:26]} 62. h7 {[%clk 0:00:12]}  b2 {[%clk 0:00:26]} 63. h8=Q {[%clk 0:00:13]}  b1=Q {[%clk 0:00:26]} 64. Qa8+ {[%clk 0:00:14]}  Kb3 {[%clk 0:00:26]} 65. Qb8+ {[%clk 0:00:14]}  Ka2 {[%clk 0:00:27]} 66. Qxb1+ {[%clk 0:00:15]}  Kxb1 {[%clk 0:00:28]} 1/2-1/2


[Site "https://www.chess.com"]

[Event "Titled Tuesday Blitz June 13 Early 2023"]
[White "Principe, Alexander"]
[Black "Levitan, Ronit"]
[WhiteFideId "3804542"]
[BlackFideId "2815109"]
[WhiteElo "2203"]
[BlackElo "1930"]
[Result "0-1"]
[Round "2"]
[TimeControl "180+2"]
[Date "2023.06.13"]
[WhiteClock "0:02:10"]
[BlackClock "0:01:06"]
[Board "231"]

1. e4 {[%clk 0:02:44]}  e5 {[%clk 0:02:57]} 2. Nf3 {[%clk 0:02:44]}  Nc6 {[%clk 0:02:57]} 3. d4 {[%clk 0:02:44]}  exd4 {[%clk 0:02:56]} 4. Nxd4 {[%clk 0:02:45]}  Nf6 {[%clk 0:02:57]} 5. Nxc6 {[%clk 0:02:46]}  bxc6 {[%clk 0:02:58]} 6. e5 {[%clk 0:02:46]}  Qe7 {[%clk 0:02:57]} 7. Qe2 {[%clk 0:02:46]}  Nd5 {[%clk 0:02:58]} 8. c4 {[%clk 0:02:46]}  Ba6 {[%clk 0:02:57]} 9. b3 {[%clk 0:02:46]}  g6 {[%clk 0:02:55]} 10. f4 {[%clk 0:02:46]}  d6 {[%clk 0:02:49]} 11. Qf2 {[%clk 0:02:43]}  Nf6 {[%clk 0:02:29]} 12. Ba3 {[%clk 0:02:42]}  Qe6 {[%clk 0:02:19]} 13. Bd3 {[%clk 0:02:35]}  dxe5 {[%clk 0:02:17]} 14. f5 {[%clk 0:02:35]}  Qd7 {[%clk 0:02:13]} 15. fxg6 {[%clk 0:02:30]}  Qxd3 {[%clk 0:01:29]} 16. Qxf6 {[%clk 0:02:29]}  Qe3+ {[%clk 0:01:24]} 17. Kd1 {[%clk 0:02:29]}  Rd8+ {[%clk 0:01:22]} 18. Kc2 {[%clk 0:02:14]}  Qe2+ {[%clk 0:01:09]} 19. Kc3 {[%clk 0:02:10]}  Rd3# {[%clk 0:01:06]} 0-1


[Site "https://www.chess.com"]

[Event "Titled Tuesday Blitz June 13 Early 2023"]
[White "Necula, Iulian"]
[Black "Matveeva, Olga"]
[WhiteFideId "1232380"]
[BlackFideId "24107018"]
[WhiteElo "1790"]
[BlackElo "2009"]
[Result "0-1"]
[Round "2"]
[TimeControl "180+2"]
[Date "2023.06.13"]
[WhiteClock "0:01:05"]
[BlackClock "0:01:18"]
[Board "234"]

1. d4 {[%clk 0:03:00]}  Nf6 {[%clk 0:02:59]} 2. Nc3 {[%clk 0:03:00]}  d5 {[%clk 0:02:57]} 3. Bf4 {[%clk 0:03:00]}  c5 {[%clk 0:02:56]} 4. e3 {[%clk 0:02:59]}  cxd4 {[%clk 0:02:51]} 5. exd4 {[%clk 0:03:00]}  Bg4 {[%clk 0:02:50]} 6. f3 {[%clk 0:02:50]}  Bd7 {[%clk 0:02:50]} 7. Bd3 {[%clk 0:02:46]}  Nc6 {[%clk 0:02:49]} 8. Nge2 {[%clk 0:02:45]}  e6 {[%clk 0:02:49]} 9. a3 {[%clk 0:02:44]}  Be7 {[%clk 0:02:43]} 10. O-O {[%clk 0:02:43]}  O-O {[%clk 0:02:42]} 11. Re1 {[%clk 0:02:41]}  Rc8 {[%clk 0:02:33]} 12. Kh1 {[%clk 0:02:37]}  a6 {[%clk 0:02:30]} 13. g4 {[%clk 0:02:27]}  b5 {[%clk 0:02:26]} 14. b4 {[%clk 0:02:18]}  Nxd4 {[%clk 0:02:19]} 15. Nxd4 {[%clk 0:02:16]}  Rxc3 {[%clk 0:02:18]} 16. Qd2 {[%clk 0:02:03]}  Rc8 {[%clk 0:02:13]} 17. h4 {[%clk 0:01:54]}  Qb6 {[%clk 0:02:11]} 18. Be3 {[%clk 0:01:50]}  Qc7 {[%clk 0:02:08]} 19. Qg2 {[%clk 0:01:40]}  Rfe8 {[%clk 0:01:54]} 20. h5 {[%clk 0:01:39]}  Bf8 {[%clk 0:01:40]} 21. Bg5 {[%clk 0:01:37]}  Be7 {[%clk 0:01:31]} 22. f4 {[%clk 0:01:31]}  Ne4 {[%clk 0:01:23]} 23. Bxe4 {[%clk 0:01:29]}  dxe4 {[%clk 0:01:23]} 24. Qxe4 {[%clk 0:01:29]}  Bxg5 {[%clk 0:01:19]} 25. fxg5 {[%clk 0:01:29]}  e5 {[%clk 0:01:19]} 26. Nf5 {[%clk 0:01:05]}  Bc6 {[%clk 0:01:18]} 0-1


[Site "https://www.chess.com"]

[Event "Titled Tuesday Blitz June 13 Early 2023"]
[White "Porat, Tori"]
[Black "Miszler, Levente"]
[WhiteFideId "30982626"]
[BlackFideId "763276"]
[WhiteElo "1752"]
[BlackElo "2176"]
[Result "0-1"]
[Round "2"]
[TimeControl "180+2"]
[Date "2023.06.13"]
[WhiteClock "0:00:19"]
[BlackClock "0:01:48"]
[Board "235"]

1. d4 {[%clk 0:03:00]}  Nf6 {[%clk 0:02:57]} 2. c4 {[%clk 0:03:00]}  c5 {[%clk 0:02:57]} 3. d5 {[%clk 0:02:59]}  e6 {[%clk 0:02:58]} 4. Nc3 {[%clk 0:02:55]}  exd5 {[%clk 0:02:58]} 5. Nxd5 {[%clk 0:02:48]}  Nc6 {[%clk 0:02:54]} 6. Bg5 {[%clk 0:02:41]}  Be7 {[%clk 0:02:53]} 7. Nxe7 {[%clk 0:02:37]}  Qxe7 {[%clk 0:02:54]} 8. Nf3 {[%clk 0:02:32]}  h6 {[%clk 0:02:52]} 9. Bxf6 {[%clk 0:02:32]}  Qxf6 {[%clk 0:02:53]} 10. Qc2 {[%clk 0:02:30]}  O-O {[%clk 0:02:49]} 11. e3 {[%clk 0:02:30]}  d6 {[%clk 0:02:40]} 12. Bd3 {[%clk 0:02:29]}  Nb4 {[%clk 0:02:39]} 13. Qd2 {[%clk 0:02:17]}  Qxb2 {[%clk 0:02:37]} 14. Rd1 {[%clk 0:00:56]}  Nxd3+ {[%clk 0:02:36]} 15. Qxd3 {[%clk 0:00:54]}  Qxa2 {[%clk 0:02:36]} 16. O-O {[%clk 0:00:54]}  Be6 {[%clk 0:02:36]} 17. Qxd6 {[%clk 0:00:53]}  Qxc4 {[%clk 0:02:34]} 18. Rc1 {[%clk 0:00:52]}  Qd5 {[%clk 0:02:34]} 19. Qc7 {[%clk 0:00:49]}  Rfc8 {[%clk 0:02:32]} 20. Qg3 {[%clk 0:00:49]}  b5 {[%clk 0:02:31]} 21. Rfd1 {[%clk 0:00:48]}  Qc6 {[%clk 0:02:31]} 22. h3 {[%clk 0:00:48]}  c4 {[%clk 0:02:31]} 23. Nd4 {[%clk 0:00:47]}  Qb6 {[%clk 0:02:30]} 24. Nxe6 {[%clk 0:00:47]}  Qxe6 {[%clk 0:02:31]} 25. Rd6 {[%clk 0:00:46]}  Qe4 {[%clk 0:02:29]} 26. Rd4 {[%clk 0:00:46]}  Qe7 {[%clk 0:02:29]} 27. Rg4 {[%clk 0:00:46]}  g6 {[%clk 0:02:29]} 28. Rh4 {[%clk 0:00:45]}  h5 {[%clk 0:02:29]} 29. Rxh5 {[%clk 0:00:44]}  b4 {[%clk 0:02:27]} 30. Rb5 {[%clk 0:00:39]}  b3 {[%clk 0:02:25]} 31. Qf4 {[%clk 0:00:37]}  a6 {[%clk 0:02:24]} 32. Rg5 {[%clk 0:00:35]}  c3 {[%clk 0:02:21]} 33. Qg4 {[%clk 0:00:26]}  b2 {[%clk 0:02:20]} 34. Rf1 {[%clk 0:00:22]}  c2 {[%clk 0:02:19]} 35. Rxg6+ {[%clk 0:00:22]}  fxg6 {[%clk 0:02:18]} 36. Qxg6+ {[%clk 0:00:23]}  Qg7 {[%clk 0:02:19]} 37. Qe6+ {[%clk 0:00:20]}  Kh8 {[%clk 0:02:18]} 38. Qf5 {[%clk 0:00:20]}  c1=Q {[%clk 0:02:13]} 39. Qh5+ {[%clk 0:00:20]}  Kg8 {[%clk 0:02:10]} 40. Qd5+ {[%clk 0:00:20]}  Kf8 {[%clk 0:02:10]} 41. Qd6+ {[%clk 0:00:20]}  Qe7 {[%clk 0:02:04]} 42. Qh6+ {[%clk 0:00:20]}  Ke8 {[%clk 0:02:04]} 43. Qh8+ {[%clk 0:00:19]}  Kd7 {[%clk 0:02:00]} 44. Qd4+ {[%clk 0:00:20]}  Kc7 {[%clk 0:01:58]} 45. Qf4+ {[%clk 0:00:20]}  Kb7 {[%clk 0:01:55]} 46. Qf3+ {[%clk 0:00:19]}  Ka7 {[%clk 0:01:55]} 47. Qf4 {[%clk 0:00:19]}  Qxf1+ {[%clk 0:01:54]} 48. Kxf1 {[%clk 0:00:19]}  b1=Q+ {[%clk 0:01:54]} 49. Ke2 {[%clk 0:00:19]}  Rc2+ {[%clk 0:01:48]} 0-1


[Site "https://www.chess.com"]

[Event "Titled Tuesday Blitz June 13 Early 2023"]
[White "Skiadopoulos, Nikolaos"]
[Black "GMFYHR1"]
[WhiteFideId "4200772"]
[WhiteElo "2022"]
[BlackElo "2431"]
[Result "0-1"]
[Round "2"]
[TimeControl "180+2"]
[Date "2023.06.13"]
[WhiteClock "0:00:00"]
[BlackClock "0:00:10"]
[Board "237"]

1. e4 {[%clk 0:02:59]}  e5 {[%clk 0:02:58]} 2. Nf3 {[%clk 0:02:59]}  Nc6 {[%clk 0:02:58]} 3. Bc4 {[%clk 0:02:58]}  Nf6 {[%clk 0:02:58]} 4. Ng5 {[%clk 0:02:57]}  d5 {[%clk 0:02:58]} 5. exd5 {[%clk 0:02:57]}  Na5 {[%clk 0:02:59]} 6. Bb5+ {[%clk 0:02:56]}  c6 {[%clk 0:03:00]} 7. dxc6 {[%clk 0:02:54]}  bxc6 {[%clk 0:03:01]} 8. Be2 {[%clk 0:02:50]}  h6 {[%clk 0:03:00]} 9. Nh3 {[%clk 0:02:50]}  Bxh3 {[%clk 0:02:53]} 10. gxh3 {[%clk 0:02:49]}  Bc5 {[%clk 0:02:54]} 11. O-O {[%clk 0:02:44]}  O-O {[%clk 0:02:50]} 12. c3 {[%clk 0:02:42]}  Nb7 {[%clk 0:02:50]} 13. b4 {[%clk 0:02:41]}  Bd6 {[%clk 0:02:49]} 14. d3 {[%clk 0:02:40]}  Qd7 {[%clk 0:02:47]} 15. Bg4 {[%clk 0:02:39]}  Qc7 {[%clk 0:02:44]} 16. Be3 {[%clk 0:02:11]}  Rad8 {[%clk 0:02:43]} 17. Qf3 {[%clk 0:02:03]}  Rfe8 {[%clk 0:02:34]} 18. Qg2 {[%clk 0:01:48]}  Bf8 {[%clk 0:02:12]} 19. Bf5 {[%clk 0:01:39]}  Nd6 {[%clk 0:02:11]} 20. Be4 {[%clk 0:01:36]}  Nfxe4 {[%clk 0:01:43]} 21. dxe4 {[%clk 0:01:35]}  Re6 {[%clk 0:01:44]} 22. Kh1 {[%clk 0:01:31]}  Rg6 {[%clk 0:01:42]} 23. Qf3 {[%clk 0:01:31]}  Qe7 {[%clk 0:01:21]} 24. Nd2 {[%clk 0:01:25]}  a6 {[%clk 0:01:19]} 25. Rg1 {[%clk 0:01:22]}  Rxg1+ {[%clk 0:01:15]} 26. Rxg1 {[%clk 0:01:21]}  Kh8 {[%clk 0:01:15]} 27. Bc5 {[%clk 0:01:14]}  Qe6 {[%clk 0:01:10]} 28. Nb3 {[%clk 0:01:00]}  Be7 {[%clk 0:00:47]} 29. Qg4 {[%clk 0:00:46]}  Qf6 {[%clk 0:00:25]} 30. Rg3 {[%clk 0:00:46]}  Qg5 {[%clk 0:00:09]} 31. Kg2 {[%clk 0:00:34]}  Qxg4 {[%clk 0:00:07]} 32. hxg4 {[%clk 0:00:30]}  Bf8 {[%clk 0:00:03]} 33. Rd3 {[%clk 0:00:28]}  Kg8 {[%clk 0:00:03]} 34. Na5 {[%clk 0:00:21]}  f6 {[%clk 0:00:02]} 35. Nxc6 {[%clk 0:00:20]}  Rc8 {[%clk 0:00:03]} 36. Na5 {[%clk 0:00:16]}  Nxe4 {[%clk 0:00:03]} 37. Bxf8 {[%clk 0:00:13]}  Kxf8 {[%clk 0:00:04]} 38. c4 {[%clk 0:00:11]}  Ke7 {[%clk 0:00:05]} 39. c5 {[%clk 0:00:10]}  Rb8 {[%clk 0:00:04]} 40. a3 {[%clk 0:00:09]}  Rb5 {[%clk 0:00:05]} 41. Nc4 {[%clk 0:00:09]}  Rb8 {[%clk 0:00:04]} 42. Nd6 {[%clk 0:00:09]}  Ng5 {[%clk 0:00:04]} 43. Nf5+ {[%clk 0:00:08]}  Kf7 {[%clk 0:00:05]} 44. Rd7+ {[%clk 0:00:08]}  Kf8 {[%clk 0:00:04]} 45. Rxg7 {[%clk 0:00:07]}  Ne6 {[%clk 0:00:05]} 46. Rg6 {[%clk 0:00:06]}  Kf7 {[%clk 0:00:05]} 47. Rxh6 {[%clk 0:00:06]}  Rg8 {[%clk 0:00:06]} 48. Rh7+ {[%clk 0:00:05]}  Kg6 {[%clk 0:00:06]} 49. Rh6+ {[%clk 0:00:04]}  Kf7 {[%clk 0:00:07]} 50. h3 {[%clk 0:00:05]}  Nf4+ {[%clk 0:00:07]} 51. Kf3 {[%clk 0:00:04]}  Rd8 {[%clk 0:00:07]} 52. Rh7+ {[%clk 0:00:03]}  Kg8 {[%clk 0:00:08]} 53. Ra7 {[%clk 0:00:02]}  Rd3+ {[%clk 0:00:08]} 54. Ke4 {[%clk 0:00:01]}  Rxa3 {[%clk 0:00:09]} 55. c6 {[%clk 0:00:01]}  Rc3 {[%clk 0:00:09]} 56. c7 {[%clk 0:00:00]}  Rc4+ {[%clk 0:00:10]} 0-1


[Site "https://www.chess.com"]